Workbook

Sheet What is Excel
B1: Gross Pay | C1: =C9 -> Deduction 1 | D1: =D9 -> Deduction 2 | E1: Total Deductions | F1: Net Pay
A2: Suix Chin | B2: 3781.17 | C2: =ROUND($B2*C$10,2) -> 234.43 | D2: 54.83 | E2: =SUM(C2:D2) -> 289.26 | F2: =B2-E2 -> 3491.91
A3: Isaac Viet | B3: 3784.32 | C3: 234.63 | D3: 54.87 | E3: =SUM(C3:D3) -> 289.5 | F3: =B3-E3 -> 3494.82
A4: Dennis Ho | B4: 8565.51 | C4: 531.06 | D4: 124.2 | E4: =SUM(C4:D4) -> 655.26 | F4: =B4-E4 -> 7910.25
A5: Hien Luong Pham | B5: 2627.99 | C5: 162.94 | D5: 38.11 | E5: =SUM(C5:D5) -> 201.05 | F5: =B5-E5 -> 2426.94
A6: Bill Jelen | B6: 9069.66 | C6: 562.32 | D6: 131.51 | E6: =SUM(C6:D6) -> 693.83 | F6: =B6-E6 -> 8375.83
C8: Assumptions
C9: Deduction 1 | D9: Deduction 2
C10: 0.062 | D10: 0.0145
H11: Observation No. | I11: Times (integer minutes | K11: Observation No. | L11: Times (integer minutes | AW11: Observation No. | AX11: Times (integer minutes
H12: 1 | I12: 11 | K12: 7 | L12: 10 | AW12: 7 | AX12: 10
H13: 2 | I13: 14 | K13: 1 | L13: 11 | AW13: 1 | AX13: 11
H14: 3 | I14: 16 | K14: 5 | L14: 11 | AW14: 5 | AX14: 11
H15: 4 | I15: 18 | K15: 6 | L15: 11 | AW15: 6 | AX15: 11
H16: 5 | I16: 11 | K16: 13 | L16: 12 | AW16: 13 | AX16: 12
H17: 6 | I17: 11 | K17: 11 | L17: 13 | AW17: 11 | AX17: 13
H18: 7 | I18: 10 | K18: 2 | L18: 14 | AW18: 2 | AX18: 14
H19: 8 | I19: 19 | K19: 12 | L19: 14 | AW19: 12 | AX19: 14
H20: 9 | I20: 18 | K20: 3 | L20: 16 | AW20: 3 | AX20: 16
H21: 10 | I21: 19 | K21: 14 | L21: 17 | AW21: 14 | AX21: 17
H22: 11 | I22: 13 | K22: 4 | L22: 18 | AW22: 4 | AX22: 18
H23: 12 | I23: 14 | K23: 9 | L23: 18 | AW23: 9 | AX23: 18
H24: 13 | I24: 12 | K24: 8 | L24: 19 | AW24: 8 | AX24: 19
H25: 14 | I25: 17 | K25: 10 | L25: 19 | AW25: 10 | AX25: 19

Sheet Rows and Columns
D9: =LEFT(ADDRESS(ROW(),COLUMN(),4),1)&RIGHT(ADDRESS(ROW(),COLUMN(),4),1) -> D9 | E9: =LEFT(ADDRESS(ROW(),COLUMN(),4),1)&RIGHT(ADDRESS(ROW(),COLUMN(),4),1) -> E9 | F9: =LEFT(ADDRESS(ROW(),COLUMN(),4),1)&RIGHT(ADDRESS(ROW(),COLUMN(),4),1) -> F9
G13: Rows | H13: =2^20 -> 1048576
G14: Columns | H14: =2^14 -> 16384
G15: Total Cells | H15: =H13*H14 -> 17179869184
B23: 62 | C23: =SUM(B23:B68) -> 4257
B24: 83
B25: 81
B26: 29
B27: 131
B28: 142
B29: 104
B30: 59
B31: 94
B32: 65
B33: 119
B34: 39
B35: 121
B36: 145
B37: 72
B38: 140
B39: 127
B40: 60
B41: 70
B42: 113
B43: 96
B44: 132
B45: 87
B46: 59
B47: 95
B48: 133
B49: 78
B50: 143
B51: 57
B52: 65
B53: 93
B54: 74
B55: 107
B56: 28
B57: 54
B58: 105
B59: 74
B60: 147
B61: 53
B62: 95
B63: 133
B64: 83
B65: 75
B66: 145
B67: 69
B68: 121

Sheet The Equal Sign
B1: Gross Pay | C1: =C9 -> Deduction 1 | D1: =D9 -> Deduction 2 | E1: Total Deductions | F1: Net Pay
A2: Suix Chin | B2: 3500 | C2: =$B2*C$10 -> 217 | D2: =$B2*D$10 -> 50.75 | E2: =SUM(C2:D2) -> 267.75
A3: Isaac Viet | B3: 3784.32 | C3: 234.62784 | D3: 54.87264 | E3: =SUM(C3:D3) -> 289.50048
A4: Dennis Ho | B4: 8565.51 | C4: 531.06162 | D4: 124.199895 | E4: =SUM(C4:D4) -> 655.261515
A5: Hien Luong Pham | B5: 2627.99 | C5: 162.93538 | D5: 38.105855 | E5: =SUM(C5:D5) -> 201.041235
A6: Tom Carolan | B6: 9069.66 | C6: 562.31892 | D6: 131.51007 | E6: =SUM(C6:D6) -> 693.82899
C8: Assumptions
C9: Deduction 1 | D9: Deduction 2
C10: 0.062 | D10: 0.0145

Sheet Ampersand
A1: Your | B1: Name

Sheet Formulas
A1: Annual Interest Rate | B1: 0.085
A2: Month Rate
A3: Effective Annual Rate
A6: Price of Car | B6: 34799 | C6: Annual Interest Rate | D6: 0.048
A7: Down Payment | B7: 10000 | C7: Monthly Interest Rate
A8: Loan Amount | C8: Years for Loan | D8: 5
A9: Monthly Payment | C9: Total Months

Sheet Math (1)
A1: Arithmetic operation signs in Excel:
A2: ( ) represents Parentheses
A3: ^ represents Exponents (powers and roots)
A4: * represents Multiplication
A5: / represents Division
A6: + represents Addition
A7: – represents Subtraction
A9: Order of Operations form Algebra class (Each one is left to right):
A10: Please è Parenthesis è ( )
A11: Excuse è Exponents è ^ è 2^2 = 4 or 4^(1/2) = 2
A12: My Dear è Multiplication è * and Division è /
A13: Aunt Sally è Adding (SUM) è + and Subtraction è -
A15: Excel's Order of Operations:
A16: Parenthesis ( )
A17: Ranges use of colon symbol ":"
A18: Example: =SUM(A1:A4)
A19: Evaluate intersections (spaces (labels))
A20: (If you ever use labels for natural language formulas)
A21: Evaluate unions (,)
A22: Example: =SUM(A1:A4,B2:C7)
A23: Negation (-)
A24: Example: =-2^4 è 16
A25: Example: =-(2^4) è -16
A26: Converts % (1% è .01)
A27: Exponents (^)
A28: Example: 4^(1/2) = 2
A29: Example: 3^2 = 9
A30: Multiplication (*) and division (/), left to right
A31: Adding (+) and subtracting (-), left to right
A32: Text operators (& è Concatenation)
A33: Comparative symbols: =, <>, >=, <=, <, >
A34: If anything is still left, then left to right

Sheet Math (2)
A1: Math the inefficient way (hard to edit later) | D1: Math the efficient way (easy to edit later)
A2: =3+3*2 | D2: =F2+G2*H2 | F2: 3 | G2: 3 | H2: 2
A3: =(3+3)*2 | D3: =(F3+G3)*H3 | F3: 3 | G3: 3 | H3: 2
A4: =2^2 | D4: =F4^G4 | F4: 2 | G4: 2
A5: =-2^2 | D5: =F5^G5 | F5: -2 | G5: 2
A6: =-(2^2) | D6: =-(F6^G6) | F6: 2 | G6: 2
A7: =-24799*0.004/(1-(1+0.004)^-60) | D7: =-F7*G7/(1-(1+G7)^-H7) | F7: 24799 | G7: 0.004 | H7: 60
D8: =E7
A60: Math the inefficient way (hard to edit later) | D60: Math the efficient way (easy to edit later)
A61: =3+3*2 | B61: =3+3*2 -> 9 | D61: =F3+G3*H3 | E61: =F61+G61*H61 -> 9 | F61: 3 | G61: 3 | H61: 2
A62: =(3+3)*2 | B62: =(3+3)*2 -> 12 | D62: =(F4+G4)*H4 | E62: =(F62+G62)*H62 -> 12 | F62: 3 | G62: 3 | H62: 2
A63: =2^2 | B63: =2^2 -> 4 | D63: =F5^G5 | E63: =F63^G63 -> 4 | F63: 2 | G63: 2
A64: =-2^2 | B64: =-2^2 -> 4 | D64: =F6^G6 | E64: =F64^G64 -> 4 | F64: -2 | G64: 2
A65: =-(2^2) | B65: =-(2^2) -> -4 | D65: =-(F7^G7) | E65: =-(F65^G65) -> -4 | F65: 2 | G65: 2
A66: =-24799*0.004/(1-(1+0.004)^-60) | B66: =-24799*0.004/(1-(1+0.004)^-60) -> -465.7188221 | D66: =-F8*G8/(1-(1+G8)^-H8) | E66: =-F66*G66/(1-(1+G66)^-H66) -> -465.7188221 | F66: 24799 | G66: 0.004 | H66: 60
D67: =E8 | E67: =E66 -> -465.7188221

Sheet Functions
A1: Annual Interest Rate | B1: 0.085 | C1: Months in a year | D1: 12
A2: Month Rate | B2: =B1/12 -> 0.007083333333
A3: Effective Annual Rate
A5: =CONCATENATE(A9," at ",D6*100,"%") -> Monthly Payment at 4.8%
A6: Price of Car | B6: 34799 | C6: Annual Interest Rate | D6: 0.048
A7: Down Payment | B7: 10000 | C7: Monthly Interest Rate | D7: =D6/12 -> 0.004
A8: Loan Amount | B8: =B6-B7 -> 24799 | C8: Years for Loan | D8: 5
A9: Monthly Payment | C9: Total Months | D9: =D8*12 -> 60
A13: 1
A14: 2
A15: 3
A16: 4
A17: 5
A18: =SUM(A13:A17) -> 15

Sheet Functions (2)
A1: Prices of vehicles sold last month at Seattle Toyota
A2: 37827 | B2: 26722 | C2: 52269 | D2: 41140 | E2: 47195 | F2: 47609 | G2: 45963 | H2: 16527 | I2: 18848 | J2: 42737
A3: 44040 | B3: 13980 | C3: 40909 | D3: 54632 | E3: 48236 | F3: 43511 | G3: 13981 | H3: 25887 | I3: 45310 | J3: 24211
A4: 20527 | B4: 40663 | C4: 46398 | D4: 31802 | E4: 41115 | F4: 42221 | G4: 52936 | H4: 19412 | I4: 52833 | J4: 53879
A5: 51500 | B5: 53360 | C5: 18407 | D5: 33099 | E5: 13063 | F5: 34761 | G5: 41983 | H5: 51034 | I5: 24456 | J5: 26970
A6: 45256 | B6: 21315 | C6: 15103 | D6: 13330 | E6: 37964 | F6: 54849 | G6: 38530 | H6: 38939 | I6: 16250 | J6: 44911
A7: 34788 | B7: 20666 | C7: 36019 | D7: 33587 | E7: 46349 | F7: 24604 | G7: 36651 | H7: 24834 | I7: 30191 | J7: 35117
A8: 34034 | B8: 17822 | C8: 40273 | D8: 31795 | E8: 22175 | F8: 28698 | G8: 51116 | H8: 49923 | I8: 47916 | J8: 18273
A9: 37065 | B9: 21700 | C9: 28515 | D9: 22040 | E9: 25103 | F9: 42833 | G9: 40231 | H9: 37742 | I9: 44545 | J9: 27536
K11: Total Number of Observations: | N11: ="The formula: "&R11&" should be in cell "&ADDRESS(ROW(L11),COLUMN(L11),4) -> The formula: =COUNT(sd) should be in cell L11 | R11: =COUNT(sd)
K12: Highest Price | N12: The formula: =MAX(sd) should be in cell L12 | R12: =MAX(sd)
K13: Lowest Price | N13: The formula: =MIN(sd) should be in cell L13 | R13: =MIN(sd)
K14: Average Price | N14: The formula: =AVERAGE(sd) should be in cell L14 | R14: =AVERAGE(sd)
K15: Sum (Total Revenue) | N15: The formula: =SUM(sd) should be in cell L15 | R15: =SUM(sd)
K16: ="Count Cars more than "&DOLLAR(RIGHT(M16,5),0) -> Count Cars more than $30,000 | M16: >30000 | N16: The formula: =COUNTIF(sd,M16) should be in cell L16 | R16: =COUNTIF(sd,M16)
K17: ="Sum total Revenue for Cars more than "&DOLLAR(RIGHT(M17,5),0) -> Sum total Revenue for Cars more than $30,000 | M17: >30000 | N17: The formula: =SUMIF(sd,M17) should be in cell L17 | R17: =SUMIF(sd,M17)
K18: Standard Deviation for the population | N18: The formula: =STDEVP(sd) should be in cell L18 | R18: =STDEVP(sd)

Sheet Cell References
A1: Name | B1: Grade Totals | C1: Percentage | F1: January | G1: February | H1: March | I1: April | J1: May
A2: Max score | B2: 100
A3: Tina | B3: 82
A4: Sue | B4: 65 | E4: Increase each month | F4: 1.1
A5: Chin | B5: 64
A6: Hien | B6: 96
A7: Dennis | B7: 87
A8: Isaac | B8: 75
A9: Sho | B9: 95
F11: What will your Pension be worth when you retire?
F12: years/Rate | G12: =F40 -> 0.1 | H12: =G12+$F41 -> 0.11 | I12: =H12+$F41 -> 0.12 | J12: =I12+$F41 -> 0.13 | K12: =J12+$F41 -> 0.14 | L12: =K12+$F41 -> 0.15
F13: =F42 -> 10
F14: =F13+F$43 -> 15
F15: =F14+F$43 -> 20
F16: 25
F17: 30
F18: 35
F19: 40
F20: 45
F21: =F20+F$43 -> 50
E23: Yearly PMT | F23: 3000
E40: Start rate | F40: 0.1
E41: increment | F41: 0.01
E42: Start years | F42: 10
E43: Increment | F43: 5

Sheet Multiplication Table
A1: ="Mutiplication Table for my Little "&O19 -> Mutiplication Table for my Little Sister
B2: =O17 -> 1 | C2: =B2+$O18 -> 2 | D2: 3 | E2: 4 | F2: 5 | G2: 6 | H2: 7 | I2: 8 | J2: 9 | K2: 10 | L2: 11 | M2: 12
A3: =B2 -> 1
A4: =A3+O$18 -> 2
A5: 3
A6: 4
A7: 5
A8: 6
A9: 7
A10: 8
A11: 9
A12: 10
A13: 11
A14: 12
N16: Assumptions
N17: Start Number | O17: 1
N18: Increment | O18: 1
N19: Family Member | O19: Sister

Sheet Copy and Move
A1: Revenue | B1: 6000
A2: Expenses | B2: 3000
A3: Net Income | B3: =B1-B2 -> 3000
B5: Create a formula in cell B6 that always looks 5 above. Then copy the formula down through the range B6:B8. | C5: Copy = Copies the formula and follows the rules of our four cell references | D5: Create a formula in cell D6 that looks at B3. Then cut the formula and paste it into E6 | E5: Cut = move the formula and pastes exactly what was in the original cell. Our rules for the four cell references do not apply

Sheet Assumptions
A1: Employee Take Home Pay Table
A2: Names | B2: January Sales | C2: Commission on Sales | D2: Base Salary | E2: Gross Pay | F2: =F11 -> FICA Deduction | G2: =G11 -> Medicare Deduction | H2: =H11 -> Federal Withholdings | I2: Total Deductions | J2: Net Pay
A3: Amy | B3: 125000 | C3: =B3*E$12 -> 2500 | D3: 2000 | E3: =SUM(C3:D3) -> 4500
A4: Paul | B4: 97855 | C4: =B4*E$12 -> 1957.1 | D4: 2000 | E4: =SUM(C4:D4) -> 3957.1
A5: Stevie | B5: 81250 | C5: =B5*E$12 -> 1625 | D5: 2000 | E5: =SUM(C5:D5) -> 3625
A6: Aya | B6: 95500 | C6: =B6*E$12 -> 1910 | D6: 2000 | E6: =SUM(C6:D6) -> 3910
A7: Jeri | B7: 78550 | C7: =B7*E$12 -> 1571 | D7: 2000 | E7: =SUM(C7:D7) -> 3571
A8: Totals | B8: =SUM(B3:B7) -> 478155 | C8: 9563.1 | D8: 10000 | E8: 19563.1
E10: Assumption Table
E11: Commission Rate | F11: FICA Deduction | G11: Medicare Deduction | H11: Federal Withholdings
E12: 0.02 | F12: 0.062 | G12: 0.0145 | H12: 0.2
E14: =E10 -> Assumption Table
E15: =E11 -> Commission Rate | F15: =E12 -> 0.02
E16: =F11 -> FICA Deduction | F16: =F12 -> 0.062
E17: =G11 -> Medicare Deduction | F17: =G12 -> 0.0145
E18: =H11 -> Federal Withholdings | F18: =H12 -> 0.2

Sheet Formatting (1)
A1: Tax rate without format | B1: Tax rate with formatting
A2: 0.125 | B2: =A2 -> 0.125
A4: Revenues | B4: 5000
A5: Expenses | B5: 2500
A6: Net Income | B6: =B4-B5 -> 2500

Sheet Formatting (2)
A1: Sales Data
B2: Product 1 | C2: Product 2 | D2: Product 3 | E2: Total
A3: January | B3: 5747 | C3: 181 | D3: 8152 | E3: =SUM(B3:D3) -> 14080
A4: February | B4: 5215 | C4: 1243 | D4: 5533 | E4: =SUM(B4:D4) -> 11991
A5: March | B5: 4595 | C5: 2834 | D5: 7276 | E5: =SUM(B5:D5) -> 14705
A6: Total | B6: =SUM(B3:B5) -> 15557 | C6: =SUM(C3:C5) -> 4258 | D6: =SUM(D3:D5) -> 20961 | E6: =SUM(B6:D6) -> 40776

Sheet Formatting (3)
A1: Number Formatting
A2: Time: 13:39 ==> The colon tells Excel that this is time (13 hours, 39 minutes) | C2: What is actually there is a proportion of one day
A3: Date: 10/25/2005 ==> the slashes tell Excel that this is a date (Oct. 25, 2005) | C3: What is there is the number of days since December 31st 1899 | D3: Dates show the number of days since December 31st 1899, where December 31st 1899 is day zero (0), January 1st, 1990 is day one (1), January 2nd, 1990 is day two (2), etc.
A4: Accounting: $ 10.00 | C4: What is actually there is 10
A5: Currency: $10.00 | C5: What is actually there is 10
A6: Percentage: 3.00% | C6: What is actually there is .03
A7: Nothing. Type in: 768 | C7: What is actually there is 768
A8: Positive numbers = Rad. Type in: 768 | C8: What is actually there is 768

Sheet Round for Deduction
A1: Taxable Earnings | B1: Deduction
A2: 2322
A3: 1201.5
B6: =B1&" %" -> Deduction %
B7: 0.062
D8: Your boss will verify if your pennies are added correctly
D9: ="Type in what you see in cell "&ADDRESS(ROW(B2),COLUMN(B2),4) -> Type in what you see in cell B2
D10: ="Type in what you see in cell "&ADDRESS(ROW(B3),COLUMN(B3),4) -> Type in what you see in cell B3
D11: Add, to verify if rounding was done!

Sheet Date Math
A1: Invoice Due Date | B1: 2006-04-23
A2: Today's Date (Ctrl + ;)
A3: Dates invoice past due =B2-B1, Ctrl + Enter, Ctrl + Shift + ~

Sheet Time Formatting (1)
D1: 8 | E1: 1 | F1: 1
D2: 24 | E2: 3 | F2: 3

Sheet Time Formatting (2)
A1: Person | B1: Wage | C1: Time in | D1: Time out | E1: Hours worked | F1: Hours worked | G1: Gross
A2: Luke | B2: 14 | C2: 08:00:00 | D2: 17:00:00
A3: Rhonda | B3: 15.5 | C3: 09:30:00 | D3: 17:35:00
A4: Roman | B4: 18 | C4: 10:00:00 | D4: 23:00:00
A5: Isaac | B5: 16.25 | C5: 08:30:00 | D5: 16:30:00
A6: Sheliadawn | B6: 24 | C6: 07:35:00 | D6: 16:30:00
A7: Rad | B7: 21 | C7: 09:15:00 | D7: 16:30:00

Sheet Time Formatting (3)
A1: Typing time format into a cell: 00:00:00 AM/PM. If you do not do it this way, Excel doesn't understand which is hour, minute or second.
A2: 00:00:00 AM/PM | B2: Hours, followed by colon ":"
A3: 00:00:00 AM/PM | B3: Minutes, followed by colon ":"
A4: 00:00:00 AM/PM | B4: Seconds, followed by space " "
A5: 00:00:00 AM/PM | B5: type AM or PM

Sheet Charts (1)
A1: WindSport Summer Sales
B2: In Store Sales | C2: Web Site Sales | D2: Mail Order Sales | E2: Totals
A3: Boomerangs | B3: 22150 | C3: 43690 | D3: 57890 | E3: =SUM(B3:D3) -> 123730
A4: Kites | B4: 37522 | C4: 51200 | D4: 43500 | E4: =SUM(B4:D4) -> 132222
A5: Toys | B5: 17540 | C5: 14550 | D5: 27890 | E5: =SUM(B5:D5) -> 59980
A6: Totals | B6: =SUM(B3:B5) -> 77212 | C6: =SUM(C3:C5) -> 109440 | D6: =SUM(D3:D5) -> 129280 | E6: =SUM(B6:D6) -> 315932

Sheet Charts (2)
A1: WindSport Summer Sales
B2: In Store Sales | C2: Web Site Sales | D2: Mail Order Sales | E2: Totals
A3: Boomerangs | B3: 22150 | C3: 43690 | D3: 57890 | E3: =SUM(B3:D3) -> 123730
A4: Kites | B4: 37522 | C4: 51200 | D4: 43500 | E4: =SUM(B4:D4) -> 132222
A5: Toys | B5: 17540 | C5: 14550 | D5: 27890 | E5: =SUM(B5:D5) -> 59980
A6: Totals | B6: =SUM(B3:B5) -> 77212 | C6: =SUM(C3:C5) -> 109440 | D6: =SUM(D3:D5) -> 129280 | E6: =SUM(B6:D6) -> 315932

Sheet Charts (3)
A1: Hour Spent Studying Per Week For One Statistics Class | B1: Final Score (Out Of 110)
A2: 7 | B2: 83
A3: 20 | B3: 100
A4: 13 | B4: 92
A5: 9 | B5: 90
A6: 5 | B6: 75
A7: 15 | B7: 95
A8: 22 | B8: 105
A9: 14 | B9: 93
A10: 25 | B10: 110
A11: 2 | B11: 51
A12: 8 | B12: 82
A13: 6 | B13: 69
A14: 10 | B14: 81
A15: 16 | B15: 94
A16: 3 | B16: 35
A17: 24 | B17: 103
A18: 8 | B18: 84
A19: 40 | B19: 108
A20: 15 | B20: 89
A21: 25 | B21: 96
A22: 21 | B22: 91
A23: 7 | B23: 80
A24: 9 | B24: 78
A25: 11 | B25: 80
A26: 14 | B26: 91
A27: 4 | B27: 71
A28: 8 | B28: 80

Sheet Page Setup
A1: Payroll For Week 1
A2: Person | B2: Wage | C2: Time in | D2: Time out | E2: Hours worked | F2: Gross
A3: Luke | B3: 14 | C3: 08:00:00 | D3: 17:00:00 | E3: =(D3-C3)*24 -> 9 | F3: =ROUND(E3*B3,2) -> 126
A4: Rhonda | B4: 15.5 | C4: 09:30:00 | D4: 17:35:00 | E4: 8.083333333 | F4: 125.29
A5: Roman | B5: 18 | C5: 10:00:00 | D5: 23:00:00 | E5: 13 | F5: 234
A6: Isaac | B6: 16.25 | C6: 08:30:00 | D6: 16:30:00 | E6: 8 | F6: 130
A7: Sheliadawn | B7: 24 | C7: 07:35:00 | D7: 16:30:00 | E7: 8.916666667 | F7: 214
A8: Rad | B8: 21 | C8: 09:15:00 | D8: 16:30:00 | E8: 7.25 | F8: 152.25

Sheet Analyze Data
A1: Date | B1: Region | C1: Sales Rep | D1: Customer | E1: Product | F1: COGS | G1: Sales
A2: 2005-10-07 | B2: SouthEast | C2: Luke | D2: Amazon.com | E2: AIM Item | F2: 3641.6344 | G2: 6278.68
A3: 2004-10-26 | B3: West | C3: Jeri | D3: Costco | E3: UYR Item | F3: 3188.9187 | G3: 7416.09
A4: 2005-05-20 | B4: North | C4: Sheliadawn | D4: Home Depot | E4: XOU Item | F4: 3636.0838 | G4: 6269.11
A5: 2004-09-24 | B5: MidWest | C5: Jon | D5: Whole Foods | E5: ILP Item | F5: 2982.5345 | G5: 5422.79
A6: 2005-01-14 | B6: MidWest | C6: Steven | D6: McLendon's Hardware | E6: LXS Item | F6: 6385.7321 | G6: 6829.66
A7: 2005-04-03 | B7: West | C7: Sheliadawn | D7: Whole Foods | E7: MFB Item | F7: 1174.977 | G7: 2611.06
A8: 2006-01-20 | B8: NorthEast | C8: Jeri | D8: Nature Company | E8: NEE Item | F8: 2790.6526 | G8: 4811.47
A9: 2006-02-26 | B9: SouthEast | C9: Jeri | D9: Home Depot | E9: JHF Item | F9: 15.062 | G9: 22.15
A10: 2004-12-16 | B10: MidWest | C10: Jeri | D10: Amazon.com | E10: LII Item | F10: 7221.7024 | G10: 8206.48
A11: 2006-04-05 | B11: NorthEast | C11: Jeri | D11: Costco | E11: FSJ Item | F11: 4647.2855 | G11: 8449.61
A12: 2005-06-24 | B12: NorthEast | C12: Jeri | D12: Yahoo | E12: HVH Item | F12: 1264.4821 | G12: 2143.19
A13: 2004-08-22 | B13: SouthEast | C13: Chin | D13: Sherman Williams | E13: YVD Item | F13: 3605.8735 | G13: 6111.65
A14: 2005-11-09 | B14: NorthEast | C14: Luke | D14: Google | E14: TTM Item | F14: 203.685 | G14: 271.58
A15: 2005-03-23 | B15: MidWest | C15: Rhonda | D15: Costco | E15: MKA Item | F15: 944.4102 | G15: 2552.46
A16: 2005-10-03 | B16: MidWest | C16: Troung | D16: McLendon's Hardware | E16: EVO Item | F16: 9189.7784 | G16: 9828.64
A17: 2005-04-04 | B17: MidWest | C17: Rhonda | D17: The Economist | E17: EYG Item | F17: 3918.3584 | G17: 4452.68
A18: 2006-01-05 | B18: NorthEast | C18: Luke | D18: Yahoo | E18: LVD Item | F18: 241.6575 | G18: 322.21
A19: 2004-11-06 | B19: NorthEast | C19: Luke | D19: Nature Company | E19: BCD Item | F19: 563.563 | G19: 1024.66
A20: 2005-09-25 | B20: SouthEast | C20: Jon | D20: Costco | E20: UGN Item | F20: 1503.7125 | G20: 2004.95
A21: 2004-11-12 | B21: MidWest | C21: Chin | D21: Solar and Wind Inc. | E21: PET Item | F21: 3504.6548 | G21: 8150.36
A22: 2004-12-07 | B22: West | C22: Jeri | D22: ExcelIsVeryFun.com | E22: AIU Item | F22: 3845.5505 | G22: 6991.91
A23: 2005-11-05 | B23: North | C23: Steven | D23: The Economist | E23: XIM Item | F23: 2510.1938 | G23: 5837.66
A24: 2005-09-30 | B24: NorthEast | C24: Jeri | D24: Amazon.com | E24: AIZ Item | F24: 627.9392 | G24: 923.44
A25: 2004-08-27 | B25: NorthEast | C25: Chin | D25: The Economist | E25: VBF Item | F25: 1441.1399 | G25: 2442.61
A26: 2004-08-18 | B26: NorthEast | C26: Rhonda | D26: Costco | E26: VCN Item | F26: 2991.765 | G26: 3989.02
A27: 2006-02-19 | B27: North | C27: Troung | D27: ExcelIsVeryFun.com | E27: GHH Item | F27: 7657.5664 | G27: 8701.78
A28: 2005-12-11 | B28: NorthEast | C28: Jeri | D28: Home Depot | E28: WPD Item | F28: 3140.5782 | G28: 5414.79
A29: 2005-03-17 | B29: NorthEast | C29: Chin | D29: Costco | E29: YWP Item | F29: 558.2475 | G29: 1298.25
A30: 2004-12-01 | B30: North | C30: Sheliadawn | D30: Home Depot | E30: BPJ Item | F30: 730.538 | G30: 1238.2
A31: 2005-04-05 | B31: NorthEast | C31: Chin | D31: Nature Company | E31: HLL Item | F31: 4007.9864 | G31: 4554.53
A32: 2005-03-04 | B32: MidWest | C32: Luke | D32: ExcelIsVeryFun.com | E32: YAK Item | F32: 5245.7053 | G32: 5610.38
A33: 2006-05-19 | B33: West | C33: Jeri | D33: Nature Company | E33: GVD Item | F33: 1854.6072 | G33: 4313.04
A34: 2005-04-25 | B34: North | C34: Luke | D34: Whole Foods | E34: SRN Item | F34: 4662.3044 | G34: 6856.33
A35: 2004-09-24 | B35: West | C35: Luke | D35: Yahoo | E35: UCA Item | F35: 1267.398 | G35: 2304.36
A36: 2004-06-17 | B36: MidWest | C36: Chin | D36: ExcelIsVeryFun.com | E36: MWN Item | F36: 6305.0008 | G36: 9272.06
A37: 2005-05-24 | B37: SouthEast | C37: Steven | D37: Sherman Williams | E37: OQM Item | F37: 6515.34 | G37: 8687.12
A38: 2005-10-20 | B38: SouthEast | C38: Luke | D38: Costco | E38: CLN Item | F38: 612.126 | G38: 1360.28
A39: 2005-01-09 | B39: North | C39: Jon | D39: Costco | E39: MYE Item | F39: 3330.0135 | G39: 7400.03
A40: 2005-12-29 | B40: NorthEast | C40: Steven | D40: Whole Foods | E40: FZS Item | F40: 359.2636 | G40: 619.42
A41: 2005-09-13 | B41: NorthEast | C41: Sheliadawn | D41: McLendon's Hardware | E41: HUO Item | F41: 2306.5689 | G41: 6233.97
A42: 2006-05-12 | B42: NorthEast | C42: Steven | D42: Home Depot | E42: DRO Item | F42: 4764.9842 | G42: 8215.49
A43: 2004-07-29 | B43: West | C43: Rhonda | D43: Yahoo | E43: CJK Item | F43: 4675.3355 | G43: 8500.61
A44: 2005-04-12 | B44: NorthEast | C44: Jon | D44: Home Depot | E44: MQP Item | F44: 4296.4138 | G44: 7407.61
A45: 2006-05-03 | B45: NorthEast | C45: Rhonda | D45: Google | E45: MHX Item | F45: 2075.59 | G45: 3773.8
A46: 2004-07-17 | B46: NorthEast | C46: Jon | D46: Office Depot | E46: JYF Item | F46: 1210.3425 | G46: 1613.79
A47: 2004-11-16 | B47: SouthEast | C47: Sheliadawn | D47: The Economist | E47: CRF Item | F47: 5399.017 | G47: 9308.65
A48: 2005-03-16 | B48: SouthEast | C48: Chin | D48: Office Depot | E48: ICN Item | F48: 605.9735 | G48: 1101.77
A49: 2004-08-17 | B49: MidWest | C49: Luke | D49: Home Depot | E49: YHI Item | F49: 3418.536 | G49: 6215.52
A50: 2005-10-13 | B50: SouthEast | C50: Jeri | D50: Sherman Williams | E50: MJG Item | F50: 2704.592 | G50: 3073.4
A51: 2005-09-26 | B51: North | C51: Troung | D51: Solar and Wind Inc. | E51: GMO Item | F51: 5590.275 | G51: 7453.7
A52: 2005-06-12 | B52: SouthEast | C52: Luke | D52: Peet's Coffee | E52: ENW Item | F52: 3438.0892 | G52: 5927.74
A53: 2006-04-15 | B53: NorthEast | C53: Troung | D53: Costco | E53: WCX Item | F53: 1182.0464 | G53: 3194.72
A54: 2005-12-30 | B54: SouthEast | C54: Troung | D54: Nature Company | E54: EIS Item | F54: 5338.44 | G54: 7117.92
A55: 2005-09-15 | B55: NorthEast | C55: Luke | D55: Nature Company | E55: ZMF Item | F55: 3251.3625 | G55: 4335.15
A56: 2006-05-11 | B56: MidWest | C56: Chin | D56: Costco | E56: VYV Item | F56: 3545.62285 | G56: 3792.11
A57: 2005-03-06 | B57: SouthEast | C57: Rhonda | D57: Nature Company | E57: XWP Item | F57: 3154.7064 | G57: 5346.96
A58: 2005-09-18 | B58: SouthEast | C58: Jeri | D58: The Economist | E58: MKP Item | F58: 447.8888 | G58: 658.66
A59: 2006-04-06 | B59: West | C59: Jon | D59: Yahoo | E59: SHA Item | F59: 1934.5304 | G59: 2198.33
A60: 2004-09-07 | B60: North | C60: Sheliadawn | D60: Nature Company | E60: NCH Item | F60: 5047.34505 | G60: 5398.23
A61: 2005-02-16 | B61: SouthEast | C61: Jon | D61: The Economist | E61: XHR Item | F61: 4271.12 | G61: 7364
A62: 2004-12-27 | B62: North | C62: Jeri | D62: The Economist | E62: KWJ Item | F62: 5832.4125 | G62: 7776.55
A63: 2004-09-30 | B63: MidWest | C63: Jon | D63: Peet's Coffee | E63: LRH Item | F63: 500.8875 | G63: 1353.75
A64: 2005-10-15 | B64: MidWest | C64: Troung | D64: Costco | E64: WIL Item | F64: 815.2089 | G64: 1381.71
A65: 2004-11-29 | B65: West | C65: Jon | D65: The Economist | E65: TGO Item | F65: 2674.6057 | G65: 4533.23
A66: 2005-03-28 | B66: West | C66: Steven | D66: McLendon's Hardware | E66: WMW Item | F66: 4341.2246 | G66: 7484.87
A67: 2005-10-21 | B67: North | C67: Chin | D67: Yahoo | E67: WKL Item | F67: 8597.4559 | G67: 9195.14
A68: 2006-03-02 | B68: North | C68: Sheliadawn | D68: Solar and Wind Inc. | E68: PUD Item | F68: 3827.0385 | G68: 8504.53
A69: 2004-09-09 | B69: West | C69: Rhonda | D69: Peet's Coffee | E69: UMN Item | F69: 1724.0326 | G69: 2972.47
A70: 2006-03-01 | B70: MidWest | C70: Luke | D70: Whole Foods | E70: YNQ Item | F70: 3185.7074 | G70: 8610.02
A71: 2006-03-07 | B71: North | C71: Chin | D71: ExcelIsVeryFun.com | E71: FMP Item | F71: 2672.1805 | G71: 4858.51
A72: 2006-05-16 | B72: NorthEast | C72: Sheliadawn | D72: Sherman Williams | E72: ONY Item | F72: 272.133 | G72: 604.74
A73: 2005-12-14 | B73: NorthEast | C73: Chin | D73: Amazon.com | E73: SVF Item | F73: 947.6383 | G73: 2203.81
A74: 2004-07-22 | B74: NorthEast | C74: Jeri | D74: The Economist | E74: KSG Item | F74: 649.5005 | G74: 1180.91
A75: 2005-09-26 | B75: NorthEast | C75: Luke | D75: The Economist | E75: JTV Item | F75: 1731.3522 | G75: 2985.09
A76: 2005-04-01 | B76: MidWest | C76: Rhonda | D76: The Economist | E76: QSA Item | F76: 6032.3582 | G76: 6451.72
A77: 2005-04-20 | B77: NorthEast | C77: Luke | D77: ExcelIsVeryFun.com | E77: HAK Item | F77: 640.6633 | G77: 1085.87
A78: 2005-01-11 | B78: NorthEast | C78: Sheliadawn | D78: Nature Company | E78: PBH Item | F78: 5217.1856 | G78: 5928.62
A79: 2005-08-07 | B79: SouthEast | C79: Troung | D79: Sherman Williams | E79: GPQ Item | F79: 6549.87135 | G79: 7005.21
A80: 2005-10-03 | B80: MidWest | C80: Steven | D80: Sherman Williams | E80: ILS Item | F80: 1461.2336 | G80: 3949.28
A81: 2004-12-11 | B81: North | C81: Luke | D81: Home Depot | E81: LFD Item | F81: 3413.6274 | G81: 9226.02
A82: 2005-01-14 | B82: MidWest | C82: Chin | D82: Costco | E82: QRV Item | F82: 2674.672 | G82: 4863.04
A83: 2004-07-24 | B83: SouthEast | C83: Chin | D83: Costco | E83: LFI Item | F83: 3410.244 | G83: 7578.32
A84: 2006-01-08 | B84: North | C84: Rhonda | D84: Solar and Wind Inc. | E84: SNK Item | F84: 2173.2178 | G84: 3683.42
A85: 2005-06-07 | B85: NorthEast | C85: Luke | D85: Office Depot | E85: BJH Item | F85: 3387.0825 | G85: 7526.85
A86: 2005-02-17 | B86: SouthEast | C86: Steven | D86: Home Depot | E86: DRK Item | F86: 2266.7966 | G86: 5271.62
A87: 2006-06-10 | B87: NorthEast | C87: Troung | D87: Google | E87: DVC Item | F87: 3411.56255 | G87: 3648.73
A88: 2005-10-07 | B88: North | C88: Chin | D88: Sherman Williams | E88: XNB Item | F88: 3464.637 | G88: 6299.34
A89: 2006-05-17 | B89: NorthEast | C89: Jon | D89: Solar and Wind Inc. | E89: JZS Item | F89: 2764.396 | G89: 4766.2
A90: 2004-08-27 | B90: West | C90: Rhonda | D90: Sherman Williams | E90: THO Item | F90: 4832.685 | G90: 8786.7
A91: 2005-04-20 | B91: MidWest | C91: Troung | D91: Costco | E91: KXJ Item | F91: 4501.755 | G91: 6002.34
A92: 2004-08-29 | B92: NorthEast | C92: Steven | D92: McLendon's Hardware | E92: VDD Item | F92: 3729.2025 | G92: 4972.27
A93: 2005-12-19 | B93: West | C93: Jon | D93: Office Depot | E93: XOU Item | F93: 5848.9125 | G93: 7798.55
A94: 2004-08-30 | B94: MidWest | C94: Rhonda | D94: Peet's Coffee | E94: JYF Item | F94: 3931.9824 | G94: 6779.28
A95: 2005-04-20 | B95: MidWest | C95: Sheliadawn | D95: Costco | E95: TBQ Item | F95: 3970.2932 | G95: 9233.24
A96: 2005-09-16 | B96: West | C96: Jon | D96: Nature Company | E96: EWM Item | F96: 1805.7295 | G96: 4880.35
A97: 2006-01-20 | B97: NorthEast | C97: Troung | D97: The Economist | E97: EYP Item | F97: 2705.4448 | G97: 4664.56
A98: 2005-05-13 | B98: NorthEast | C98: Steven | D98: Peet's Coffee | E98: BTJ Item | F98: 4431.1188 | G98: 7639.86
A99: 2005-07-15 | B99: North | C99: Sheliadawn | D99: Google | E99: IAF Item | F99: 1908.5475 | G99: 2544.73
A100: 2004-10-02 | B100: MidWest | C100: Jeri | D100: Costco | E100: CLS Item | F100: 6662.8287 | G100: 7126.02
A101: 2004-12-06 | B101: West | C101: Troung | D101: ExcelIsVeryFun.com | E101: YGD Item | F101: 2226.9456 | G101: 2530.62
A102: 2004-10-09 | B102: NorthEast | C102: Steven | D102: Yahoo | E102: DKM Item | F102: 5385.81 | G102: 7181.08
A103: 2005-07-04 | B103: NorthEast | C103: Luke | D103: Solar and Wind Inc. | E103: ULJ Item | F103: 3442.4258 | G103: 5834.62
A104: 2005-10-13 | B104: SouthEast | C104: Rhonda | D104: Office Depot | E104: XMY Item | F104: 2395.2468 | G104: 6473.64
A105: 2006-01-01 | B105: NorthEast | C105: Troung | D105: Whole Foods | E105: EHO Item | F105: 1251.685 | G105: 2121.5
A106: 2005-08-28 | B106: MidWest | C106: Sheliadawn | D106: The Economist | E106: WEW Item | F106: 5349.4444 | G106: 7866.83
A107: 2005-08-27 | B107: NorthEast | C107: Steven | D107: The Economist | E107: III Item | F107: 5843.4508 | G107: 6249.68
A108: 2005-08-25 | B108: West | C108: Troung | D108: Solar and Wind Inc. | E108: PUA Item | F108: 2050.445 | G108: 3535.25
A109: 2005-08-03 | B109: West | C109: Jeri | D109: Office Depot | E109: MEL Item | F109: 8814.57225 | G109: 9427.35
A110: 2005-04-18 | B110: West | C110: Rhonda | D110: Whole Foods | E110: EFD Item | F110: 45.0065 | G110: 81.83
A111: 2004-08-09 | B111: MidWest | C111: Luke | D111: Sherman Williams | E111: ZEI Item | F111: 1370.5505 | G111: 2491.91
A112: 2006-01-11 | B112: North | C112: Jeri | D112: Amazon.com | E112: BZE Item | F112: 3249.56445 | G112: 3475.47
A113: 2004-08-30 | B113: SouthEast | C113: Jon | D113: Nature Company | E113: BYE Item | F113: 4482.798 | G113: 6592.35
A114: 2005-06-10 | B114: NorthEast | C114: Rhonda | D114: Costco | E114: IWN Item | F114: 5331.82815 | G114: 5702.49
A115: 2005-08-04 | B115: NorthEast | C115: Steven | D115: Whole Foods | E115: BAN Item | F115: 2881.4257 | G115: 6700.99
A116: 2006-05-13 | B116: North | C116: Rhonda | D116: Nature Company | E116: OAP Item | F116: 2666.1386 | G116: 7205.78
A117: 2006-01-09 | B117: NorthEast | C117: Rhonda | D117: Solar and Wind Inc. | E117: NZX Item | F117: 725.5525 | G117: 1229.75
A118: 2004-08-18 | B118: NorthEast | C118: Steven | D118: Whole Foods | E118: VYM Item | F118: 2420.9618 | G118: 6543.14
A119: 2004-08-10 | B119: North | C119: Troung | D119: Costco | E119: NFU Item | F119: 234.0888 | G119: 266.01
A120: 2006-02-15 | B120: NorthEast | C120: Chin | D120: Costco | E120: TGL Item | F120: 58.7597 | G120: 158.81
A121: 2004-12-20 | B121: SouthEast | C121: Jon | D121: Solar and Wind Inc. | E121: VIN Item | F121: 5876.5947 | G121: 9960.33
A122: 2004-07-02 | B122: NorthEast | C122: Jon | D122: Sherman Williams | E122: OYO Item | F122: 836.176 | G122: 1520.32
A123: 2006-03-03 | B123: West | C123: Troung | D123: ExcelIsVeryFun.com | E123: KPO Item | F123: 426.4783 | G123: 991.81
A124: 2005-02-03 | B124: West | C124: Rhonda | D124: Nature Company | E124: WHF Item | F124: 5162.8456 | G124: 5521.76
A125: 2005-11-21 | B125: West | C125: Jon | D125: Google | E125: NWT Item | F125: 1768.9536 | G125: 3049.92
A126: 2005-10-28 | B126: MidWest | C126: Chin | D126: Amazon.com | E126: WXR Item | F126: 2714.0059 | G126: 4600.01
A127: 2006-03-01 | B127: NorthEast | C127: Rhonda | D127: Sherman Williams | E127: MKO Item | F127: 1885.707 | G127: 4190.46
A128: 2005-12-09 | B128: NorthEast | C128: Jon | D128: Amazon.com | E128: YQS Item | F128: 1479.2355 | G128: 3287.19
A129: 2005-05-18 | B129: NorthEast | C129: Troung | D129: Office Depot | E129: PAY Item | F129: 3795.6057 | G129: 6433.23
A130: 2005-02-10 | B130: West | C130: Rhonda | D130: Costco | E130: FSD Item | F130: 3806.2052 | G130: 8851.64
A131: 2005-03-01 | B131: NorthEast | C131: Chin | D131: Home Depot | E131: AUW Item | F131: 2741.958 | G131: 6093.24
A132: 2004-07-10 | B132: North | C132: Chin | D132: Yahoo | E132: RCA Item | F132: 1904.6734 | G132: 3228.26
A133: 2005-01-21 | B133: MidWest | C133: Luke | D133: Whole Foods | E133: NSN Item | F133: 8615.6224 | G133: 9790.48
A134: 2006-05-18 | B134: MidWest | C134: Troung | D134: McLendon's Hardware | E134: RRT Item | F134: 2442.518 | G134: 6601.4
A135: 2005-07-01 | B135: NorthEast | C135: Troung | D135: Office Depot | E135: CMU Item | F135: 5412.7864 | G135: 7959.98
A136: 2005-05-19 | B136: NorthEast | C136: Jeri | D136: Peet's Coffee | E136: QLL Item | F136: 1319.846 | G136: 2399.72
A137: 2005-03-31 | B137: West | C137: Luke | D137: Solar and Wind Inc. | E137: VDA Item | F137: 2944.1 | G137: 4990
A138: 2005-09-30 | B138: North | C138: Steven | D138: Google | E138: XXH Item | F138: 610.8984 | G138: 898.38
A139: 2005-04-30 | B139: North | C139: Chin | D139: Google | E139: WPF Item | F139: 2401.7329 | G139: 6491.17
A140: 2005-07-12 | B140: NorthEast | C140: Jon | D140: Costco | E140: ATV Item | F140: 2880.9 | G140: 3273.75
A141: 2006-05-02 | B141: NorthEast | C141: Troung | D141: Google | E141: KKL Item | F141: 1775.075 | G141: 4797.5
A142: 2005-11-04 | B142: West | C142: Troung | D142: Google | E142: ZAW Item | F142: 2878.6815 | G142: 6397.07
A143: 2006-02-06 | B143: North | C143: Rhonda | D143: Home Depot | E143: KFE Item | F143: 1297.0134 | G143: 2236.23
A144: 2005-10-02 | B144: MidWest | C144: Jon | D144: ExcelIsVeryFun.com | E144: NBK Item | F144: 167.9623 | G144: 390.61
A145: 2005-09-19 | B145: West | C145: Sheliadawn | D145: The Economist | E145: KQN Item | F145: 1622.2909 | G145: 4384.57
A146: 2005-05-27 | B146: North | C146: Steven | D146: Nature Company | E146: OGH Item | F146: 2116.3998 | G146: 4921.86
A147: 2005-12-16 | B147: MidWest | C147: Luke | D147: Costco | E147: QDR Item | F147: 3978.1852 | G147: 6858.94
A148: 2006-05-18 | B148: NorthEast | C148: Rhonda | D148: The Economist | E148: DIO Item | F148: 4246.57365 | G148: 4541.79
A149: 2006-03-14 | B149: SouthEast | C149: Rhonda | D149: Peet's Coffee | E149: TIH Item | F149: 4846.16 | G149: 5507
A150: 2006-03-21 | B150: North | C150: Steven | D150: ExcelIsVeryFun.com | E150: MGO Item | F150: 2464.9075 | G150: 4481.65
A151: 2006-02-04 | B151: North | C151: Chin | D151: Yahoo | E151: AIL Item | F151: 1142.983 | G151: 2658.1
A152: 2004-06-23 | B152: SouthEast | C152: Jon | D152: Google | E152: PQT Item | F152: 1707.8127 | G152: 4615.71
A153: 2004-10-06 | B153: NorthEast | C153: Rhonda | D153: Peet's Coffee | E153: LVG Item | F153: 3671.5798 | G153: 6330.31
A154: 2006-03-31 | B154: North | C154: Rhonda | D154: McLendon's Hardware | E154: WBN Item | F154: 892.6496 | G154: 1312.72
A155: 2006-05-30 | B155: West | C155: Chin | D155: Whole Foods | E155: JLK Item | F155: 5224.19095 | G155: 5587.37
A156: 2005-07-09 | B156: MidWest | C156: Steven | D156: The Economist | E156: MTL Item | F156: 3730.95855 | G156: 3990.33
A157: 2005-06-19 | B157: NorthEast | C157: Sheliadawn | D157: Sherman Williams | E157: SBX Item | F157: 3281.5376 | G157: 3729.02
A158: 2005-12-12 | B158: NorthEast | C158: Luke | D158: Solar and Wind Inc. | E158: MQW Item | F158: 92.276 | G158: 135.7
A159: 2005-04-21 | B159: MidWest | C159: Chin | D159: Nature Company | E159: CSJ Item | F159: 731.8193 | G159: 1977.89
A160: 2005-02-08 | B160: MidWest | C160: Jon | D160: Google | E160: WWB Item | F160: 1936.7625 | G160: 2582.35
A161: 2005-09-08 | B161: West | C161: Chin | D161: ExcelIsVeryFun.com | E161: RHM Item | F161: 890.874 | G161: 2071.8
A162: 2006-05-30 | B162: West | C162: Luke | D162: Costco | E162: JUE Item | F162: 1117.5013 | G162: 1894.07
A163: 2006-02-06 | B163: NorthEast | C163: Sheliadawn | D163: Peet's Coffee | E163: GLG Item | F163: 3446.4242 | G163: 8014.94
A164: 2005-01-12 | B164: NorthEast | C164: Sheliadawn | D164: Yahoo | E164: ONK Item | F164: 2647.8405 | G164: 5884.09
A165: 2004-12-25 | B165: MidWest | C165: Sheliadawn | D165: Nature Company | E165: KKF Item | F165: 3343.995 | G165: 7431.1
A166: 2005-03-29 | B166: SouthEast | C166: Jeri | D166: Sherman Williams | E166: QGI Item | F166: 4345.0932 | G166: 7491.54
A167: 2004-06-26 | B167: NorthEast | C167: Jeri | D167: Amazon.com | E167: AHN Item | F167: 5927.724 | G167: 6736.05
A168: 2005-12-05 | B168: NorthEast | C168: Jeri | D168: Sherman Williams | E168: SSU Item | F168: 1323.1163 | G168: 2242.57
A169: 2006-06-07 | B169: MidWest | C169: Jon | D169: Nature Company | E169: QDA Item | F169: 5395.126 | G169: 9809.32
A170: 2005-09-17 | B170: North | C170: Jeri | D170: Peet's Coffee | E170: GHF Item | F170: 1575.673 | G170: 2864.86
A171: 2005-07-02 | B171: West | C171: Rhonda | D171: Google | E171: UNH Item | F171: 2727.48 | G171: 3636.64
A172: 2005-10-24 | B172: West | C172: Sheliadawn | D172: Solar and Wind Inc. | E172: PKE Item | F172: 7137.555 | G172: 9516.74
A173: 2006-02-10 | B173: North | C173: Steven | D173: Whole Foods | E173: TYZ Item | F173: 2542.4395 | G173: 5912.65
A174: 2005-08-25 | B174: North | C174: Troung | D174: ExcelIsVeryFun.com | E174: WJP Item | F174: 2596.2075 | G174: 5769.35
A175: 2004-12-09 | B175: SouthEast | C175: Luke | D175: Home Depot | E175: KBY Item | F175: 2935.0364 | G175: 4316.23
A176: 2004-08-23 | B176: North | C176: Chin | D176: Yahoo | E176: VNQ Item | F176: 969.232 | G176: 1762.24
A177: 2005-02-01 | B177: SouthEast | C177: Troung | D177: Costco | E177: KJV Item | F177: 9318.958 | G177: 9966.8
A178: 2004-10-24 | B178: NorthEast | C178: Sheliadawn | D178: Sherman Williams | E178: HMW Item | F178: 5011.1716 | G178: 7369.37
A179: 2005-03-11 | B179: NorthEast | C179: Troung | D179: Amazon.com | E179: CNH Item | F179: 4467.838 | G179: 6570.35
A180: 2005-12-29 | B180: NorthEast | C180: Chin | D180: Sherman Williams | E180: LEO Item | F180: 3132.6833 | G180: 7285.31
A181: 2005-08-20 | B181: West | C181: Troung | D181: McLendon's Hardware | E181: EUH Item | F181: 196.4584 | G181: 456.88
A182: 2005-09-16 | B182: West | C182: Chin | D182: Amazon.com | E182: LOP Item | F182: 266.3024 | G182: 451.36
A183: 2004-07-16 | B183: NorthEast | C183: Rhonda | D183: Nature Company | E183: ESJ Item | F183: 5269.946 | G183: 9581.72
A184: 2005-10-24 | B184: SouthEast | C184: Steven | D184: Costco | E184: XLF Item | F184: 1798.3416 | G184: 2043.57
A185: 2004-08-03 | B185: North | C185: Luke | D185: ExcelIsVeryFun.com | E185: MME Item | F185: 1281.1805 | G185: 3462.65
A186: 2005-02-19 | B186: SouthEast | C186: Jon | D186: Costco | E186: IQG Item | F186: 116.9192 | G186: 171.94
A187: 2004-10-10 | B187: SouthEast | C187: Steven | D187: ExcelIsVeryFun.com | E187: AWF Item | F187: 6417.6632 | G187: 9437.74
A188: 2005-09-17 | B188: NorthEast | C188: Chin | D188: McLendon's Hardware | E188: TMF Item | F188: 1660.4823 | G188: 4487.79
A189: 2005-06-28 | B189: NorthEast | C189: Rhonda | D189: Whole Foods | E189: UDS Item | F189: 3354.5776 | G189: 3812.02
A190: 2004-12-02 | B190: West | C190: Jon | D190: Peet's Coffee | E190: YGP Item | F190: 6835.972 | G190: 7768.15
A191: 2005-09-17 | B191: NorthEast | C191: Troung | D191: Office Depot | E191: TUL Item | F191: 2918.628 | G191: 6485.84
A192: 2005-02-16 | B192: NorthEast | C192: Sheliadawn | D192: Sherman Williams | E192: JZO Item | F192: 6575.61 | G192: 8767.48
A193: 2005-04-17 | B193: NorthEast | C193: Jeri | D193: Google | E193: WBL Item | F193: 4714.631 | G193: 7990.9
A194: 2005-01-25 | B194: MidWest | C194: Chin | D194: Sherman Williams | E194: BPZ Item | F194: 3148.5256 | G194: 3577.87
A195: 2004-12-17 | B195: MidWest | C195: Steven | D195: Yahoo | E195: WIP Item | F195: 3075.82 | G195: 5592.4
A196: 2006-06-08 | B196: NorthEast | C196: Rhonda | D196: Sherman Williams | E196: SWQ Item | F196: 4295.7172 | G196: 9990.04
A197: 2005-08-06 | B197: NorthEast | C197: Jon | D197: Nature Company | E197: EZU Item | F197: 607.6486 | G197: 1047.67
A198: 2005-03-19 | B198: SouthEast | C198: Sheliadawn | D198: Whole Foods | E198: NEE Item | F198: 4351.8046 | G198: 7375.94
A199: 2006-01-17 | B199: NorthEast | C199: Troung | D199: The Economist | E199: GAK Item | F199: 345.5158 | G199: 585.62
A200: 2006-04-26 | B200: SouthEast | C200: Steven | D200: Home Depot | E200: UPA Item | F200: 7054.7752 | G200: 8016.79
... 1800 more rows

Sheet IF Function
A1: IF function
A2: Delivers 1 of 2 things to a cell or formula
A3: You can deliver: Words, Numbers, or Formulas to a cell or formula
A4: argument 1 | B4: This is a TRUE/FALSE test. The test either evaluates to TRUE, or FALSE
A5: argument 2 | B5: What to put in the cell if the test evaluates to TRUE
A6: argument 3 | B6: What to put in the cell if the test evaluates to FALSE
A8: Deliver 1 of 2 Numbers to cell
A9: Sales | B9: =B27 -> 5500
A10: Sales Hurdle | B10: 5000
A11: Bonus if Hurdle met | B11: 100
A12: Bonus if Hurdle not met | B12: 0
A14: Bonus Amount
A16: Deliver 1 of 2 possible Text items to the cell
A17: Sales | B17: =B9 -> 5500
A18: Expenses | B18: =B28 -> 3450
B19: =B17-B18 -> 2050
A21: Deliver 1 of 2 possible Formulas to cell
A22: Sales | B22: =B9 -> 5500
A23: Expenses | B23: =B28 -> 3450
A24: =IF(B22>=B23,"Net Income","Net Loss") -> Net Income
B26: Jan | C26: Feb | D26: Mar | E26: Apr
A27: Reveneue | B27: 5500 | C27: 4500 | D27: 5000 | E27: 4999
A28: Exepense Before Bonus | B28: 3450 | C28: 3105 | D28: 4485 | E28: 4071
A29: Bonus
A30: Total Expenses | B30: =SUM(B28:B29) -> 3450 | C30: 3105 | D30: 4485 | E30: 4071
A31: Net Income | B31: =B27-B30 -> 2050 | C31: 1395 | D31: 515 | E31: 928
A33: More than one IF ==> Delivering 1 of 3 Text items to the cell
A34: Sales | B34: =B22 -> 5500
A35: Expenses | B35: 500
A36: =IF(B34>B35,"Net Income",IF(B34=B35,"Break Even","Net Loss")) -> Net Income | B36: =IF(B34>=B35,B34-B35,B35-B34) -> 5000 | C36: =IF(F25>F26,"Net Income",IF(F25=F26,"Break Even","Net Loss"))
A38: More than one IF (delivering 1 of 7 possible formulas to the cell) ==> Where you actually should use VLOOKUP
A39: Invoice Total Due | B39: 7123.76
A40: Invoice Due Date | B40: =B41-INT(RAND()*200) -> 2008-08-21
A41: Today | B41: =TODAY() -> 2008-09-15
A42: Days Invoice Over Due | B42: =B41-B40 -> 25
A43: Late Fee | B43: =ROUND(IF(B42>=I53,B39*K53,IF(B42>=I52,B39*K52,IF(B42>=I51,B39*K51,IF(B42>=I50,B39*K50,IF(B42>=I49,B39*K49,IF(B42>=I48,B39*K48,IF(B42>=I47,B39*K47,0))))))),2) -> 142.48 | C43: =ROUND(IF(B42>=D46,B39*F46,IF(B42>=D45,B39*F45,IF(B42>=D44,B39*F44,IF(B42>=D43,B39*F43,IF(B42>=D42,B39*F42,IF(B42>=D41,B39*F41,IF(B42>=D40,B39*F40,0))))))),2)
I45: Days Invoice Overdue | J45: Description | K45: Interest Rate Late Fee
I46: =M46 -> 0 | J46: =IF(I46=$M$53,"Over "&M46,"Over "&M46&" but less than "&N46) -> Over 0 but less than 10 | K46: 0 | M46: 0 | N46: =M47 -> 10
I47: =M47 -> 10 | J47: Over 10 but less than 20 | K47: 0.01 | M47: 10 | N47: 20
I48: 20 | J48: Over 20 but less than 30 | K48: 0.02 | M48: 20 | N48: 30
I49: 30 | J49: Over 30 but less than 40 | K49: 0.03 | M49: 30 | N49: 40
I50: 40 | J50: Over 40 but less than 50 | K50: 0.04 | M50: 40 | N50: 50
I51: 50 | J51: Over 50 but less than 90 | K51: 0.05 | M51: 50 | N51: 90
I52: 90 | J52: Over 90 but less than 120 | K52: 0.06 | M52: 90 | N52: 120
I53: 120 | J53: Over 120 | K53: 0.07 | M53: 120

Sheet Filter
A1: Date | B1: Region | C1: Sales Rep | D1: Customer | E1: Product | F1: COGS | G1: Sales
A2: 2006-03-01 | B2: NorthEast | C2: Rhonda | D2: Sherman Williams | E2: MKO Item | F2: 1885.707 | G2: 4190.46
A3: 2004-08-03 | B3: North | C3: Luke | D3: ExcelIsVeryFun.com | E3: MME Item | F3: 1281.1805 | G3: 3462.65
A4: 2005-05-24 | B4: SouthEast | C4: Steven | D4: Sherman Williams | E4: OQM Item | F4: 6515.34 | G4: 8687.12
A5: 2005-10-15 | B5: MidWest | C5: Troung | D5: Costco | E5: WIL Item | F5: 815.2089 | G5: 1381.71
A6: 2005-06-07 | B6: NorthEast | C6: Luke | D6: Office Depot | E6: BJH Item | F6: 3387.0825 | G6: 7526.85
A7: 2004-08-09 | B7: MidWest | C7: Luke | D7: Sherman Williams | E7: ZEI Item | F7: 1370.5505 | G7: 2491.91
A8: 2006-05-27 | B8: North | C8: Steven | D8: Yahoo | E8: HPF Item | F8: 87.246 | G8: 193.88
A9: 2006-01-20 | B9: NorthEast | C9: Jeri | D9: Nature Company | E9: NEE Item | F9: 2790.6526 | G9: 4811.47
A10: 2005-10-20 | B10: SouthEast | C10: Luke | D10: Costco | E10: CLN Item | F10: 612.126 | G10: 1360.28
A11: 2005-01-25 | B11: North | C11: Jon | D11: The Economist | E11: ZJS Item | F11: 5002.53 | G11: 6670.04
A12: 2004-08-30 | B12: MidWest | C12: Rhonda | D12: Peet's Coffee | E12: JYF Item | F12: 3931.9824 | G12: 6779.28
A13: 2004-09-21 | B13: SouthEast | C13: Jeri | D13: ExcelIsVeryFun.com | E13: ZLA Item | F13: 1101.1422 | G13: 2976.06
A14: 2004-10-02 | B14: MidWest | C14: Jeri | D14: Costco | E14: CLS Item | F14: 6662.8287 | G14: 7126.02
A15: 2005-02-03 | B15: West | C15: Rhonda | D15: Nature Company | E15: WHF Item | F15: 5162.8456 | G15: 5521.76
A16: 2004-08-29 | B16: NorthEast | C16: Steven | D16: McLendon's Hardware | E16: VDD Item | F16: 3729.2025 | G16: 4972.27
A17: 2005-08-28 | B17: MidWest | C17: Sheliadawn | D17: The Economist | E17: WEW Item | F17: 5349.4444 | G17: 7866.83
A18: 2004-12-17 | B18: NorthEast | C18: Jeri | D18: Yahoo | E18: ICX Item | F18: 4085.4915 | G18: 9078.87
A19: 2005-05-01 | B19: North | C19: Steven | D19: Sherman Williams | E19: QIL Item | F19: 2952.3648 | G19: 3354.96
A20: 2006-05-03 | B20: NorthEast | C20: Rhonda | D20: Google | E20: MHX Item | F20: 2075.59 | G20: 3773.8
A21: 2005-04-05 | B21: NorthEast | C21: Chin | D21: Nature Company | E21: HLL Item | F21: 4007.9864 | G21: 4554.53
A22: 2004-12-02 | B22: West | C22: Jon | D22: Peet's Coffee | E22: YGP Item | F22: 6835.972 | G22: 7768.15
A23: 2005-12-30 | B23: SouthEast | C23: Troung | D23: Nature Company | E23: EIS Item | F23: 5338.44 | G23: 7117.92
A24: 2005-10-21 | B24: North | C24: Chin | D24: Yahoo | E24: WKL Item | F24: 8597.4559 | G24: 9195.14
A25: 2005-12-29 | B25: NorthEast | C25: Steven | D25: Whole Foods | E25: FZS Item | F25: 359.2636 | G25: 619.42
A26: 2004-12-16 | B26: MidWest | C26: Jeri | D26: Amazon.com | E26: LII Item | F26: 7221.7024 | G26: 8206.48
A27: 2006-03-14 | B27: SouthEast | C27: Rhonda | D27: Peet's Coffee | E27: TIH Item | F27: 4846.16 | G27: 5507
A28: 2005-01-25 | B28: MidWest | C28: Chin | D28: Sherman Williams | E28: BPZ Item | F28: 3148.5256 | G28: 3577.87
A29: 2004-10-09 | B29: NorthEast | C29: Steven | D29: Yahoo | E29: DKM Item | F29: 5385.81 | G29: 7181.08
A30: 2004-12-16 | B30: West | C30: Jeri | D30: The Economist | E30: CDR Item | F30: 2335.029 | G30: 5430.3
A31: 2005-10-13 | B31: SouthEast | C31: Rhonda | D31: Office Depot | E31: XMY Item | F31: 2395.2468 | G31: 6473.64
A32: 2004-12-23 | B32: NorthEast | C32: Steven | D32: Yahoo | E32: LGZ Item | F32: 4064.72 | G32: 7390.4
A33: 2005-01-01 | B33: West | C33: Jon | D33: The Economist | E33: PTH Item | F33: 1449.1455 | G33: 2634.81
A34: 2005-08-04 | B34: NorthEast | C34: Steven | D34: Whole Foods | E34: BAN Item | F34: 2881.4257 | G34: 6700.99
A35: 2005-11-19 | B35: NorthEast | C35: Jeri | D35: Costco | E35: AKY Item | F35: 1193.4675 | G35: 1591.29
A36: 2005-12-31 | B36: North | C36: Troung | D36: Costco | E36: TTK Item | F36: 2963.6762 | G36: 5023.18
A37: 2005-02-19 | B37: SouthEast | C37: Jon | D37: Costco | E37: IQG Item | F37: 116.9192 | G37: 171.94
A38: 2005-10-28 | B38: MidWest | C38: Jon | D38: Solar and Wind Inc. | E38: VMC Item | F38: 4705.0725 | G38: 6273.43
A39: 2005-05-20 | B39: North | C39: Sheliadawn | D39: Home Depot | E39: XOU Item | F39: 3636.0838 | G39: 6269.11
A40: 2005-09-15 | B40: NorthEast | C40: Luke | D40: Nature Company | E40: ZMF Item | F40: 3251.3625 | G40: 4335.15
A41: 2006-04-06 | B41: West | C41: Jon | D41: Yahoo | E41: SHA Item | F41: 1934.5304 | G41: 2198.33
A42: 2006-04-27 | B42: SouthEast | C42: Troung | D42: Sherman Williams | E42: UBW Item | F42: 1186.6409 | G42: 2759.63
A43: 2005-07-21 | B43: NorthEast | C43: Sheliadawn | D43: McLendon's Hardware | E43: QHO Item | F43: 1641.6136 | G43: 1865.47
A44: 2006-03-17 | B44: NorthEast | C44: Steven | D44: Sherman Williams | E44: OCL Item | F44: 3308.4068 | G44: 8941.64
A45: 2005-04-07 | B45: North | C45: Luke | D45: Office Depot | E45: VRK Item | F45: 4155.9016 | G45: 6111.62
A46: 2005-04-21 | B46: MidWest | C46: Chin | D46: Nature Company | E46: CSJ Item | F46: 731.8193 | G46: 1977.89
A47: 2005-12-11 | B47: NorthEast | C47: Jeri | D47: Home Depot | E47: WPD Item | F47: 3140.5782 | G47: 5414.79
A48: 2006-03-06 | B48: NorthEast | C48: Jon | D48: Solar and Wind Inc. | E48: LOI Item | F48: 2356.684 | G48: 4284.88
A49: 2005-12-07 | B49: NorthEast | C49: Sheliadawn | D49: ExcelIsVeryFun.com | E49: AIQ Item | F49: 4257.4392 | G49: 6260.94
A50: 2005-07-09 | B50: MidWest | C50: Steven | D50: The Economist | E50: MTL Item | F50: 3730.95855 | G50: 3990.33
A51: 2005-03-01 | B51: NorthEast | C51: Chin | D51: Home Depot | E51: AUW Item | F51: 2741.958 | G51: 6093.24
A52: 2005-09-17 | B52: North | C52: Jeri | D52: Peet's Coffee | E52: GHF Item | F52: 1575.673 | G52: 2864.86
A53: 2005-01-28 | B53: NorthEast | C53: Steven | D53: Solar and Wind Inc. | E53: SMX Item | F53: 4035.8836 | G53: 6958.42
A54: 2006-01-09 | B54: NorthEast | C54: Rhonda | D54: Solar and Wind Inc. | E54: NZX Item | F54: 725.5525 | G54: 1229.75
A55: 2005-03-15 | B55: NorthEast | C55: Chin | D55: Amazon.com | E55: KEI Item | F55: 3491.8709 | G55: 8120.63
A56: 2005-09-26 | B56: North | C56: Troung | D56: Solar and Wind Inc. | E56: GMO Item | F56: 5590.275 | G56: 7453.7
A57: 2005-02-17 | B57: SouthEast | C57: Steven | D57: Home Depot | E57: DRK Item | F57: 2266.7966 | G57: 5271.62
A58: 2006-05-16 | B58: NorthEast | C58: Sheliadawn | D58: Sherman Williams | E58: ONY Item | F58: 272.133 | G58: 604.74
A59: 2005-12-19 | B59: West | C59: Jon | D59: Office Depot | E59: XOU Item | F59: 5848.9125 | G59: 7798.55
A60: 2004-10-07 | B60: NorthEast | C60: Troung | D60: Yahoo | E60: XLN Item | F60: 1155.0808 | G60: 3121.84
A61: 2005-08-19 | B61: NorthEast | C61: Rhonda | D61: Office Depot | E61: XZI Item | F61: 4217.7152 | G61: 9808.64
A62: 2005-10-05 | B62: NorthEast | C62: Sheliadawn | D62: Costco | E62: RGS Item | F62: 1365.32 | G62: 1551.5
A63: 2004-08-30 | B63: SouthEast | C63: Jon | D63: Nature Company | E63: BYE Item | F63: 4482.798 | G63: 6592.35
A64: 2005-02-18 | B64: MidWest | C64: Chin | D64: Whole Foods | E64: FKD Item | F64: 2924.2365 | G64: 6800.55
A65: 2006-05-18 | B65: NorthEast | C65: Rhonda | D65: The Economist | E65: DIO Item | F65: 4246.57365 | G65: 4541.79
A66: 2005-12-12 | B66: NorthEast | C66: Luke | D66: Solar and Wind Inc. | E66: MQW Item | F66: 92.276 | G66: 135.7
A67: 2006-03-08 | B67: West | C67: Rhonda | D67: Amazon.com | E67: PEN Item | F67: 1701.144 | G67: 3780.32
A68: 2006-01-09 | B68: MidWest | C68: Jeri | D68: Google | E68: PNA Item | F68: 2070.557 | G68: 5596.1
A69: 2004-06-17 | B69: MidWest | C69: Chin | D69: ExcelIsVeryFun.com | E69: MWN Item | F69: 6305.0008 | G69: 9272.06
A70: 2005-02-16 | B70: NorthEast | C70: Troung | D70: Home Depot | E70: BSV Item | F70: 5085.1274 | G70: 8618.86
A71: 2006-04-04 | B71: NorthEast | C71: Jeri | D71: Yahoo | E71: KDX Item | F71: 1231.7985 | G71: 2737.33
A72: 2005-04-03 | B72: West | C72: Sheliadawn | D72: Whole Foods | E72: MFB Item | F72: 1174.977 | G72: 2611.06
A73: 2004-07-17 | B73: NorthEast | C73: Jon | D73: Office Depot | E73: JYF Item | F73: 1210.3425 | G73: 1613.79
A74: 2005-07-15 | B74: North | C74: Sheliadawn | D74: Google | E74: IAF Item | F74: 1908.5475 | G74: 2544.73
A75: 2004-07-02 | B75: NorthEast | C75: Jon | D75: Sherman Williams | E75: OYO Item | F75: 836.176 | G75: 1520.32
A76: 2005-10-24 | B76: SouthEast | C76: Steven | D76: Costco | E76: XLF Item | F76: 1798.3416 | G76: 2043.57
A77: 2004-12-05 | B77: West | C77: Chin | D77: Yahoo | E77: HAI Item | F77: 2640.132 | G77: 4800.24
A78: 2005-06-16 | B78: NorthEast | C78: Troung | D78: Office Depot | E78: IKV Item | F78: 4949.535 | G78: 6599.38
A79: 2005-08-27 | B79: NorthEast | C79: Steven | D79: The Economist | E79: III Item | F79: 5843.4508 | G79: 6249.68
A80: 2005-12-06 | B80: North | C80: Steven | D80: Google | E80: FPO Item | F80: 1518.2025 | G80: 2024.27
A81: 2005-09-01 | B81: North | C81: Troung | D81: Google | E81: PXE Item | F81: 7327.08 | G81: 9769.44
A82: 2006-02-06 | B82: North | C82: Rhonda | D82: Home Depot | E82: KFE Item | F82: 1297.0134 | G82: 2236.23
A83: 2006-05-02 | B83: NorthEast | C83: Troung | D83: Google | E83: KKL Item | F83: 1775.075 | G83: 4797.5
A84: 2004-12-11 | B84: North | C84: Luke | D84: Home Depot | E84: LFD Item | F84: 3413.6274 | G84: 9226.02
A85: 2006-05-18 | B85: MidWest | C85: Troung | D85: McLendon's Hardware | E85: RRT Item | F85: 2442.518 | G85: 6601.4
A86: 2005-12-09 | B86: NorthEast | C86: Jon | D86: Amazon.com | E86: YQS Item | F86: 1479.2355 | G86: 3287.19
A87: 2005-04-30 | B87: North | C87: Chin | D87: Google | E87: WPF Item | F87: 2401.7329 | G87: 6491.17
A88: 2005-07-24 | B88: SouthEast | C88: Troung | D88: Whole Foods | E88: ZMY Item | F88: 3234.281 | G88: 8741.3
A89: 2004-08-13 | B89: North | C89: Jeri | D89: ExcelIsVeryFun.com | E89: KPY Item | F89: 8446.46 | G89: 9598.25
A90: 2005-01-29 | B90: North | C90: Rhonda | D90: Solar and Wind Inc. | E90: XFU Item | F90: 969.0351 | G90: 2253.57
A91: 2005-06-19 | B91: NorthEast | C91: Sheliadawn | D91: Sherman Williams | E91: SBX Item | F91: 3281.5376 | G91: 3729.02
A92: 2005-01-14 | B92: MidWest | C92: Steven | D92: McLendon's Hardware | E92: LXS Item | F92: 6385.7321 | G92: 6829.66
A93: 2005-09-26 | B93: NorthEast | C93: Luke | D93: The Economist | E93: JTV Item | F93: 1731.3522 | G93: 2985.09
A94: 2005-03-30 | B94: SouthEast | C94: Jeri | D94: Solar and Wind Inc. | E94: RCE Item | F94: 3730.502 | G94: 6431.9
A95: 2005-03-06 | B95: SouthEast | C95: Rhonda | D95: Nature Company | E95: XWP Item | F95: 3154.7064 | G95: 5346.96
A96: 2004-12-31 | B96: NorthEast | C96: Steven | D96: Yahoo | E96: WPE Item | F96: 5394.145 | G96: 9300.25
A97: 2005-10-02 | B97: MidWest | C97: Jon | D97: ExcelIsVeryFun.com | E97: NBK Item | F97: 167.9623 | G97: 390.61
A98: 2004-12-20 | B98: SouthEast | C98: Jon | D98: Solar and Wind Inc. | E98: VIN Item | F98: 5876.5947 | G98: 9960.33
A99: 2005-05-01 | B99: SouthEast | C99: Jon | D99: Whole Foods | E99: MSH Item | F99: 6820.56 | G99: 9094.08
A100: 2005-02-16 | B100: NorthEast | C100: Sheliadawn | D100: Sherman Williams | E100: JZO Item | F100: 6575.61 | G100: 8767.48
A101: 2005-08-23 | B101: NorthEast | C101: Troung | D101: ExcelIsVeryFun.com | E101: YTX Item | F101: 4906.627 | G101: 8921.14
A102: 2005-11-20 | B102: North | C102: Chin | D102: Home Depot | E102: FEK Item | F102: 1531.2128 | G102: 3560.96
A103: 2005-10-07 | B103: North | C103: Chin | D103: Sherman Williams | E103: XNB Item | F103: 3464.637 | G103: 6299.34
A104: 2005-03-17 | B104: NorthEast | C104: Chin | D104: Costco | E104: YWP Item | F104: 558.2475 | G104: 1298.25
A105: 2006-04-05 | B105: NorthEast | C105: Jeri | D105: Costco | E105: FSJ Item | F105: 4647.2855 | G105: 8449.61
A106: 2005-11-21 | B106: West | C106: Jon | D106: Google | E106: NWT Item | F106: 1768.9536 | G106: 3049.92
A107: 2004-08-01 | B107: NorthEast | C107: Luke | D107: Yahoo | E107: MOQ Item | F107: 4595.206 | G107: 8354.92
A108: 2006-05-13 | B108: North | C108: Rhonda | D108: Nature Company | E108: OAP Item | F108: 2666.1386 | G108: 7205.78
A109: 2005-09-16 | B109: West | C109: Chin | D109: Amazon.com | E109: LOP Item | F109: 266.3024 | G109: 451.36
A110: 2006-04-09 | B110: SouthEast | C110: Chin | D110: Peet's Coffee | E110: UXD Item | F110: 2647.4332 | G110: 4564.54
A111: 2005-09-16 | B111: West | C111: Jon | D111: Nature Company | E111: EWM Item | F111: 1805.7295 | G111: 4880.35
A112: 2006-02-15 | B112: NorthEast | C112: Chin | D112: Costco | E112: TGL Item | F112: 58.7597 | G112: 158.81
A113: 2004-07-10 | B113: North | C113: Chin | D113: Yahoo | E113: RCA Item | F113: 1904.6734 | G113: 3228.26
A114: 2004-11-16 | B114: SouthEast | C114: Sheliadawn | D114: The Economist | E114: CRF Item | F114: 5399.017 | G114: 9308.65
A115: 2005-06-26 | B115: NorthEast | C115: Jeri | D115: ExcelIsVeryFun.com | E115: NCN Item | F115: 1522.3185 | G115: 3382.93
A116: 2004-08-27 | B116: West | C116: Rhonda | D116: Sherman Williams | E116: THO Item | F116: 4832.685 | G116: 8786.7
A117: 2005-08-31 | B117: West | C117: Jeri | D117: Whole Foods | E117: FXL Item | F117: 677.3124 | G117: 1167.78
A118: 2005-11-09 | B118: NorthEast | C118: Luke | D118: Google | E118: TTM Item | F118: 203.685 | G118: 271.58
A119: 2004-12-09 | B119: West | C119: Jeri | D119: Costco | E119: KVL Item | F119: 627.282 | G119: 1393.96
A120: 2006-03-21 | B120: North | C120: Steven | D120: ExcelIsVeryFun.com | E120: MGO Item | F120: 2464.9075 | G120: 4481.65
A121: 2004-12-04 | B121: North | C121: Steven | D121: The Economist | E121: RDD Item | F121: 1980.135 | G121: 2640.18
A122: 2006-02-04 | B122: North | C122: Chin | D122: Yahoo | E122: AIL Item | F122: 1142.983 | G122: 2658.1
A123: 2005-12-14 | B123: NorthEast | C123: Chin | D123: Amazon.com | E123: SVF Item | F123: 947.6383 | G123: 2203.81
A124: 2005-11-17 | B124: NorthEast | C124: Steven | D124: Costco | E124: RGD Item | F124: 4276.9176 | G124: 9946.32
A125: 2004-12-27 | B125: North | C125: Jeri | D125: The Economist | E125: KWJ Item | F125: 5832.4125 | G125: 7776.55
A126: 2004-11-22 | B126: NorthEast | C126: Rhonda | D126: The Economist | E126: FFT Item | F126: 7012.77115 | G126: 7500.29
A127: 2005-10-13 | B127: West | C127: Jon | D127: Office Depot | E127: UBV Item | F127: 18.0728 | G127: 31.16
A128: 2005-01-21 | B128: MidWest | C128: Luke | D128: Whole Foods | E128: NSN Item | F128: 8615.6224 | G128: 9790.48
A129: 2006-05-30 | B129: West | C129: Luke | D129: Costco | E129: JUE Item | F129: 1117.5013 | G129: 1894.07
A130: 2005-07-01 | B130: NorthEast | C130: Troung | D130: Office Depot | E130: CMU Item | F130: 5412.7864 | G130: 7959.98
A131: 2005-09-23 | B131: NorthEast | C131: Steven | D131: Amazon.com | E131: GYH Item | F131: 2280.1692 | G131: 3353.19
A132: 2005-08-08 | B132: NorthEast | C132: Sheliadawn | D132: Yahoo | E132: SCW Item | F132: 2237.4629 | G132: 3792.31
A133: 2006-05-25 | B133: West | C133: Jeri | D133: Office Depot | E133: RTF Item | F133: 1259.0744 | G133: 2928.08
A134: 2005-11-20 | B134: NorthEast | C134: Luke | D134: The Economist | E134: XZF Item | F134: 1950.3045 | G134: 4334.01
A135: 2006-02-06 | B135: NorthEast | C135: Sheliadawn | D135: Peet's Coffee | E135: GLG Item | F135: 3446.4242 | G135: 8014.94
A136: 2005-01-09 | B136: North | C136: Jon | D136: Costco | E136: MYE Item | F136: 3330.0135 | G136: 7400.03
A137: 2005-10-03 | B137: MidWest | C137: Troung | D137: McLendon's Hardware | E137: EVO Item | F137: 9189.7784 | G137: 9828.64
A138: 2004-08-17 | B138: MidWest | C138: Luke | D138: Home Depot | E138: YHI Item | F138: 3418.536 | G138: 6215.52
A139: 2005-08-04 | B139: North | C139: Steven | D139: Office Depot | E139: HKD Item | F139: 4911.24645 | G139: 5252.67
A140: 2004-09-07 | B140: NorthEast | C140: Steven | D140: Nature Company | E140: GYK Item | F140: 1864.6688 | G140: 2742.16
A141: 2005-08-25 | B141: West | C141: Troung | D141: Solar and Wind Inc. | E141: PUA Item | F141: 2050.445 | G141: 3535.25
A142: 2005-01-05 | B142: West | C142: Sheliadawn | D142: McLendon's Hardware | E142: NGZ Item | F142: 644.4688 | G142: 1092.32
A143: 2004-07-01 | B143: NorthEast | C143: Troung | D143: McLendon's Hardware | E143: BJI Item | F143: 105.4019 | G143: 284.87
A144: 2005-02-11 | B144: MidWest | C144: Jeri | D144: Solar and Wind Inc. | E144: HGT Item | F144: 3639.015 | G144: 4852.02
A145: 2004-12-25 | B145: MidWest | C145: Sheliadawn | D145: Nature Company | E145: KKF Item | F145: 3343.995 | G145: 7431.1
A146: 2005-04-18 | B146: West | C146: Rhonda | D146: Whole Foods | E146: EFD Item | F146: 45.0065 | G146: 81.83
A147: 2006-04-26 | B147: SouthEast | C147: Steven | D147: Home Depot | E147: UPA Item | F147: 7054.7752 | G147: 8016.79
A148: 2006-05-10 | B148: NorthEast | C148: Jeri | D148: Whole Foods | E148: FPN Item | F148: 1855.4205 | G148: 5014.65
A149: 2006-01-08 | B149: North | C149: Rhonda | D149: Solar and Wind Inc. | E149: SNK Item | F149: 2173.2178 | G149: 3683.42
A150: 2004-12-14 | B150: NorthEast | C150: Jeri | D150: Office Depot | E150: HOQ Item | F150: 5300.6646 | G150: 5669.16
A151: 2005-12-13 | B151: SouthEast | C151: Jon | D151: Nature Company | E151: KHA Item | F151: 1191.2446 | G151: 2053.87
A152: 2005-01-24 | B152: NorthEast | C152: Troung | D152: Office Depot | E152: FZY Item | F152: 331.1537 | G152: 895.01
A153: 2005-04-25 | B153: North | C153: Luke | D153: Whole Foods | E153: SRN Item | F153: 4662.3044 | G153: 6856.33
A154: 2004-11-30 | B154: West | C154: Troung | D154: ExcelIsVeryFun.com | E154: AEW Item | F154: 4760.7908 | G154: 8208.26
A155: 2004-11-12 | B155: MidWest | C155: Chin | D155: Solar and Wind Inc. | E155: PET Item | F155: 3504.6548 | G155: 8150.36
A156: 2006-01-20 | B156: NorthEast | C156: Troung | D156: The Economist | E156: EYP Item | F156: 2705.4448 | G156: 4664.56
A157: 2005-10-24 | B157: West | C157: Sheliadawn | D157: Solar and Wind Inc. | E157: PKE Item | F157: 7137.555 | G157: 9516.74
A158: 2005-06-01 | B158: West | C158: Luke | D158: Solar and Wind Inc. | E158: CCV Item | F158: 1205.9256 | G158: 1773.42
A159: 2006-03-01 | B159: MidWest | C159: Luke | D159: Whole Foods | E159: YNQ Item | F159: 3185.7074 | G159: 8610.02
A160: 2004-11-23 | B160: North | C160: Jeri | D160: Sherman Williams | E160: KGM Item | F160: 4699.112 | G160: 5339.9
A161: 2004-10-24 | B161: NorthEast | C161: Sheliadawn | D161: Sherman Williams | E161: HMW Item | F161: 5011.1716 | G161: 7369.37
A162: 2004-11-29 | B162: West | C162: Jon | D162: The Economist | E162: TGO Item | F162: 2674.6057 | G162: 4533.23
A163: 2005-04-20 | B163: MidWest | C163: Troung | D163: Costco | E163: KXJ Item | F163: 4501.755 | G163: 6002.34
A164: 2005-02-10 | B164: West | C164: Rhonda | D164: Costco | E164: FSD Item | F164: 3806.2052 | G164: 8851.64
A165: 2005-12-05 | B165: NorthEast | C165: Jeri | D165: Sherman Williams | E165: SSU Item | F165: 1323.1163 | G165: 2242.57
A166: 2004-08-10 | B166: North | C166: Troung | D166: Costco | E166: NFU Item | F166: 234.0888 | G166: 266.01
A167: 2004-09-09 | B167: West | C167: Rhonda | D167: Peet's Coffee | E167: UMN Item | F167: 1724.0326 | G167: 2972.47
A168: 2005-09-17 | B168: NorthEast | C168: Chin | D168: McLendon's Hardware | E168: TMF Item | F168: 1660.4823 | G168: 4487.79
A169: 2004-08-22 | B169: SouthEast | C169: Chin | D169: Sherman Williams | E169: YVD Item | F169: 3605.8735 | G169: 6111.65
A170: 2005-10-13 | B170: SouthEast | C170: Jeri | D170: Sherman Williams | E170: MJG Item | F170: 2704.592 | G170: 3073.4
A171: 2005-09-19 | B171: West | C171: Sheliadawn | D171: The Economist | E171: KQN Item | F171: 1622.2909 | G171: 4384.57
A172: 2006-03-31 | B172: North | C172: Rhonda | D172: McLendon's Hardware | E172: WBN Item | F172: 892.6496 | G172: 1312.72
A173: 2005-01-22 | B173: West | C173: Chin | D173: Costco | E173: CNG Item | F173: 1735.734 | G173: 1856.4
A174: 2004-12-18 | B174: West | C174: Troung | D174: Amazon.com | E174: YHA Item | F174: 114.453 | G174: 254.34
A175: 2005-06-24 | B175: NorthEast | C175: Jeri | D175: Yahoo | E175: HVH Item | F175: 1264.4821 | G175: 2143.19
A176: 2004-09-24 | B176: MidWest | C176: Jon | D176: Whole Foods | E176: ILP Item | F176: 2982.5345 | G176: 5422.79
A177: 2005-03-18 | B177: West | C177: Jon | D177: Solar and Wind Inc. | E177: HGQ Item | F177: 249.3832 | G177: 366.74
A178: 2004-12-01 | B178: North | C178: Sheliadawn | D178: Home Depot | E178: BPJ Item | F178: 730.538 | G178: 1238.2
A179: 2005-01-12 | B179: NorthEast | C179: Sheliadawn | D179: Yahoo | E179: ONK Item | F179: 2647.8405 | G179: 5884.09
A180: 2004-10-26 | B180: West | C180: Jeri | D180: Costco | E180: UYR Item | F180: 3188.9187 | G180: 7416.09
A181: 2005-08-06 | B181: NorthEast | C181: Jon | D181: Nature Company | E181: EZU Item | F181: 607.6486 | G181: 1047.67
A182: 2005-08-03 | B182: West | C182: Jeri | D182: Office Depot | E182: MEL Item | F182: 8814.57225 | G182: 9427.35
A183: 2004-09-24 | B183: West | C183: Luke | D183: Yahoo | E183: UCA Item | F183: 1267.398 | G183: 2304.36
A184: 2005-03-19 | B184: SouthEast | C184: Sheliadawn | D184: Whole Foods | E184: NEE Item | F184: 4351.8046 | G184: 7375.94
A185: 2005-11-13 | B185: NorthEast | C185: Sheliadawn | D185: Whole Foods | E185: KNX Item | F185: 4231.4635 | G185: 7693.57
A186: 2005-01-11 | B186: NorthEast | C186: Sheliadawn | D186: Nature Company | E186: PBH Item | F186: 5217.1856 | G186: 5928.62
A187: 2005-07-18 | B187: MidWest | C187: Chin | D187: Yahoo | E187: CVY Item | F187: 4445.8334 | G187: 7665.23
A188: 2005-06-13 | B188: NorthEast | C188: Sheliadawn | D188: Peet's Coffee | E188: QGM Item | F188: 5643.7453 | G188: 9565.67
A189: 2005-11-15 | B189: North | C189: Jeri | D189: Nature Company | E189: ILH Item | F189: 4854.3364 | G189: 7138.73
A190: 2005-08-13 | B190: MidWest | C190: Steven | D190: Solar and Wind Inc. | E190: QPM Item | F190: 2645.064 | G190: 5877.92
A191: 2006-01-01 | B191: West | C191: Luke | D191: Google | E191: ETU Item | F191: 4341.1787 | G191: 7357.93
A192: 2005-03-11 | B192: NorthEast | C192: Troung | D192: Amazon.com | E192: CNH Item | F192: 4467.838 | G192: 6570.35
A193: 2006-05-31 | B193: NorthEast | C193: Jon | D193: ExcelIsVeryFun.com | E193: YIP Item | F193: 4494.447 | G193: 9987.66
A194: 2005-04-04 | B194: MidWest | C194: Luke | D194: Office Depot | E194: WVS Item | F194: 1454.9975 | G194: 2645.45
A195: 2005-12-20 | B195: NorthEast | C195: Jon | D195: Office Depot | E195: EIE Item | F195: 2212.823 | G195: 5146.1
A196: 2005-10-07 | B196: SouthEast | C196: Luke | D196: Amazon.com | E196: AIM Item | F196: 3641.6344 | G196: 6278.68
A197: 2005-04-20 | B197: NorthEast | C197: Luke | D197: ExcelIsVeryFun.com | E197: HAK Item | F197: 640.6633 | G197: 1085.87
A198: 2004-11-06 | B198: NorthEast | C198: Luke | D198: Nature Company | E198: BCD Item | F198: 563.563 | G198: 1024.66
A199: 2004-09-07 | B199: North | C199: Sheliadawn | D199: Nature Company | E199: NCH Item | F199: 5047.34505 | G199: 5398.23
A200: 2004-09-23 | B200: NorthEast | C200: Jeri | D200: Yahoo | E200: JKT Item | F200: 1559.4982 | G200: 3626.74
... 150 more rows
